[Event "Late-Titled-Tuesday-Blitz-March-19-2024"]
[Site "Chess.com"]
[Date "2024.03.19"]
[Round "11"]
[White "sansanathalia"]
[Black "xasid81"]
[Result "0-1"]
[WhiteElo "2419"]
[BlackElo "2605"]
[TimeControl "180+1"]
[EndTime "16:07:08 PDT"]
[Termination "xasid81 won on time"]

1. e4 {[%clk 0:03:00.9]} 1... a6 {[%clk 0:02:58.3]} 2. d4 {[%clk 0:03:00]} 2...
e6 {[%clk 0:02:58.4]} 3. Nf3 {[%clk 0:02:59.9]} 3... d5 {[%clk 0:02:58.9]} 4.
Bd3 {[%clk 0:02:58.3]} 4... dxe4 {[%clk 0:02:58.2]} 5. Bxe4 {[%clk 0:02:58.1]}
5... Nf6 {[%clk 0:02:58.8]} 6. Bd3 {[%clk 0:02:57.7]} 6... c5 {[%clk 0:02:59.3]}
7. c3 {[%clk 0:02:56.1]} 7... Nc6 {[%clk 0:02:58.8]} 8. dxc5 {[%clk 0:02:40]}
8... Bxc5 {[%clk 0:02:57.5]} 9. O-O {[%clk 0:02:40]} 9... O-O {[%clk 0:02:56.3]}
10. Bg5 {[%clk 0:02:38.8]} 10... h6 {[%clk 0:02:55.7]} 11. Bh4 {[%clk 0:02:37]}
11... b5 {[%clk 0:02:51.8]} 12. Qc2 {[%clk 0:02:31.3]} 12... Be7 {[%clk
0:02:47.4]} 13. Nbd2 {[%clk 0:02:28.6]} 13... Bb7 {[%clk 0:02:47.1]} 14. Ne4
{[%clk 0:02:27.2]} 14... Nxe4 {[%clk 0:02:43.9]} 15. Bxe7 {[%clk 0:02:25.1]}
15... Nxe7 {[%clk 0:02:41]} 16. Bxe4 {[%clk 0:02:24.8]} 16... Bxe4 {[%clk
0:02:41.9]} 17. Qxe4 {[%clk 0:02:24.9]} 17... Qd5 {[%clk 0:02:42.7]} 18. Qxd5
{[%clk 0:02:21.3]} 18... Nxd5 {[%clk 0:02:43.6]} 19. Rad1 {[%clk 0:02:20.9]}
19... Rfc8 {[%clk 0:02:42.5]} 20. Ne5 {[%clk 0:02:15.9]} 20... a5 {[%clk
0:02:40.9]} 21. g3 {[%clk 0:02:11.8]} 21... Rc5 {[%clk 0:02:40.3]} 22. Nf3
{[%clk 0:02:08.3]} 22... b4 {[%clk 0:02:38]} 23. cxb4 {[%clk 0:02:05.2]} 23...
axb4 {[%clk 0:02:38.9]} 24. Ra1 {[%clk 0:02:00]} 24... Rca5 {[%clk 0:02:38.9]}
25. a3 {[%clk 0:02:00.1]} 25... bxa3 {[%clk 0:02:39.7]} 26. bxa3 {[%clk
0:02:00.3]} 26... Rxa3 {[%clk 0:02:40.6]} 27. Rxa3 {[%clk 0:02:00.4]} 27... Rxa3
{[%clk 0:02:41.5]} 28. Kg2 {[%clk 0:02:00.6]} 28... Ra2 {[%clk 0:02:41.9]} 29.
Re1 {[%clk 0:01:59]} 29... g5 {[%clk 0:02:39.6]} 30. h4 {[%clk 0:01:55.5]} 30...
g4 {[%clk 0:02:35.8]} 31. Ne5 {[%clk 0:01:50]} 31... h5 {[%clk 0:02:35.8]} 32.
Nd3 {[%clk 0:01:46.4]} 32... Rd2 {[%clk 0:02:33]} 33. Nc5 {[%clk 0:01:44.7]}
33... Kg7 {[%clk 0:02:31.9]} 34. Re5 {[%clk 0:01:24.5]} 34... Kh6 {[%clk
0:02:02.4]} 35. Re1 {[%clk 0:01:15.7]} 35... Rc2 {[%clk 0:01:56.8]} 36. Nd3
{[%clk 0:01:14.5]} 36... Rc3 {[%clk 0:01:48]} 37. Nc1 {[%clk 0:01:12.4]} 37...
Kg7 {[%clk 0:01:41.5]} 38. Ne2 {[%clk 0:01:09.1]} 38... Rc4 {[%clk 0:01:41.4]}
39. Rd1 {[%clk 0:01:05.3]} 39... Rc2 {[%clk 0:01:35.2]} 40. Re1 {[%clk
0:01:04.5]} 40... Kf6 {[%clk 0:01:33.9]} 41. Kf1 {[%clk 0:00:58.8]} 41... Rd2
{[%clk 0:01:21.9]} 42. Kg2 {[%clk 0:00:54.6]} 42... e5 {[%clk 0:01:17.8]} 43.
Kf1 {[%clk 0:00:49.4]} 43... Kf5 {[%clk 0:01:13.9]} 44. Rc1 {[%clk 0:00:36.3]}
44... f6 {[%clk 0:01:01]} 45. Nc3 {[%clk 0:00:21.4]} 45... Nxc3 {[%clk 0:00:54]}
46. Rxc3 {[%clk 0:00:21]} 46... Rd5 {[%clk 0:00:46]} 47. Kg2 {[%clk 0:00:20.8]}
47... Ke4 {[%clk 0:00:44.4]} 48. Re3+ {[%clk 0:00:20.3]} 48... Kf5 {[%clk
0:00:44]} 49. Ra3 {[%clk 0:00:20.8]} 49... e4 {[%clk 0:00:42.8]} 50. Ra4 {[%clk
0:00:18.6]} 50... Ke5 {[%clk 0:00:42.9]} 51. Ra8 {[%clk 0:00:17.2]} 51... Kd4
{[%clk 0:00:41.5]} 52. Ra4+ {[%clk 0:00:16.8]} 52... Kd3 {[%clk 0:00:40.8]} 53.
Ra3+ {[%clk 0:00:16.7]} 53... Kd2 {[%clk 0:00:37.8]} 54. Ra4 {[%clk 0:00:15.2]}
54... e3 {[%clk 0:00:34.1]} 55. Ra2+ {[%clk 0:00:15.3]} 55... Ke1 {[%clk
0:00:24.1]} 56. Ra1+ {[%clk 0:00:13.8]} 56... Ke2 {[%clk 0:00:20.6]} 57. fxe3
{[%clk 0:00:14]} 57... Kxe3 {[%clk 0:00:19.5]} 58. Re1+ {[%clk 0:00:13.6]} 58...
Kd2 {[%clk 0:00:18.4]} 59. Re6 {[%clk 0:00:12.4]} 59... Rf5 {[%clk 0:00:18.2]}
60. Re4 {[%clk 0:00:11.2]} 60... Kd3 {[%clk 0:00:18.2]} 61. Re6 {[%clk
0:00:11.3]} 61... Kd4 {[%clk 0:00:18.1]} 62. Re8 {[%clk 0:00:11.6]} 62... Kd5
{[%clk 0:00:17.7]} 63. Rd8+ {[%clk 0:00:11.4]} 63... Ke4 {[%clk 0:00:17.9]} 64.
Re8+ {[%clk 0:00:11.7]} 64... Re5 {[%clk 0:00:18.3]} 65. Rf8 {[%clk 0:00:10.3]}
65... Kf5 {[%clk 0:00:18.2]} 66. Kf2 {[%clk 0:00:09.6]} 66... Ra5 {[%clk
0:00:17.1]} 67. Rh8 {[%clk 0:00:09.3]} 67... Ra2+ {[%clk 0:00:16.6]} 68. Ke3
{[%clk 0:00:09.2]} 68... Kg6 {[%clk 0:00:14.4]} 69. Rg8+ {[%clk 0:00:09.4]}
69... Kh7 {[%clk 0:00:12.4]} 70. Rf8 {[%clk 0:00:08.2]} 70... Kg7 {[%clk
0:00:12.5]} 71. Rb8 {[%clk 0:00:07.1]} 71... Rg2 {[%clk 0:00:11.9]} 72. Kf4
{[%clk 0:00:06.9]} 72... Rf2+ {[%clk 0:00:11.7]} 73. Ke4 {[%clk 0:00:07.2]}
73... Rf3 {[%clk 0:00:12.1]} 74. Rb5 {[%clk 0:00:06.5]} 74... Kg6 {[%clk
0:00:11.8]} 75. Rb8 {[%clk 0:00:04.6]} 75... Rxg3 {[%clk 0:00:11.8]} 76. Rg8+
{[%clk 0:00:04.1]} 76... Kh7 {[%clk 0:00:12]} 77. Rf8 {[%clk 0:00:04.5]} 77...
Kg7 {[%clk 0:00:12.2]} 78. Ra8 {[%clk 0:00:04.2]} 78... Rf3 {[%clk 0:00:12.4]}
79. Ra5 {[%clk 0:00:03.2]} 79... Kg6 {[%clk 0:00:12.5]} 80. Ra8 {[%clk 0:00:03]}
80... Rh3 {[%clk 0:00:12.5]} 81. Kf4 {[%clk 0:00:01.3]} 81... Rf3+ {[%clk
0:00:12.2]} 82. Ke4 {[%clk 0:00:01.3]} 82... Rf1 {[%clk 0:00:12.8]} 83. Rg8+
{[%clk 0:00:01.1]} 83... Kh7 {[%clk 0:00:12.8]} 84. Rb8 {[%clk 0:00:01.3]} 84...
f5+ {[%clk 0:00:11.7]} 85. Ke5 {[%clk 0:00:01.4]} 85... g3 {[%clk 0:00:09.4]}
86. Kf6 {[%clk 0:00:01.6]} 86... Ra1 {[%clk 0:00:04.6]} 87. Rb7+ {[%clk
0:00:01.6]} 87... Kh6 {[%clk 0:00:05]} 88. Rb8 {[%clk 0:00:01.7]} 88... Ra6+
{[%clk 0:00:04.8]} 89. Kxf5 {[%clk 0:00:01.7]} 89... g2 {[%clk 0:00:03.2]} 90.
Rg8 {[%clk 0:00:02.1]} 90... Ra2 {[%clk 0:00:02.5]} 91. Rg6+ {[%clk 0:00:02]}
91... Kh7 {[%clk 0:00:02.2]} 92. Rg5 {[%clk 0:00:01.5]} 92... Ra5+ {[%clk
0:00:02]} 0-1

[Event "Late-Titled-Tuesday-Blitz-March-19-2024"]
[Site "Chess.com"]
[Date "2024.03.19"]
[Round "11"]
[White "IMchanged"]
[Black "andrzej"]
[Result "0-1"]
[WhiteElo "2642"]
[BlackElo "2525"]
[TimeControl "180+1"]
[EndTime "16:07:33 PDT"]
[Termination "andrzej won by checkmate"]

1. e4 {[%clk 0:03:00.9]} 1... c5 {[%clk 0:02:59.7]} 2. Nf3 {[%clk 0:03:00.6]}
2... d6 {[%clk 0:03:00.2]} 3. d4 {[%clk 0:03:00.1]} 3... cxd4 {[%clk 0:03:01.1]}
4. Nxd4 {[%clk 0:03:00]} 4... Nf6 {[%clk 0:03:01.2]} 5. Nc3 {[%clk 0:03:00.7]}
5... a6 {[%clk 0:03:01.1]} 6. Bg5 {[%clk 0:03:01.3]} 6... e6 {[%clk 0:03:00.3]}
7. f4 {[%clk 0:03:01.3]} 7... Nbd7 {[%clk 0:02:59.7]} 8. Qf3 {[%clk 0:03:00.5]}
8... Qc7 {[%clk 0:02:59.8]} 9. O-O-O {[%clk 0:03:01]} 9... Be7 {[%clk
0:02:59.3]} 10. g4 {[%clk 0:03:01.6]} 10... h6 {[%clk 0:02:58.6]} 11. Bxf6
{[%clk 0:03:01.8]} 11... Bxf6 {[%clk 0:02:58.8]} 12. h4 {[%clk 0:02:58.3]} 12...
Nb6 {[%clk 0:02:54]} 13. g5 {[%clk 0:02:58.3]} 13... Bxd4 {[%clk 0:02:41.3]} 14.
Rxd4 {[%clk 0:02:57.5]} 14... Qc5 {[%clk 0:02:41.9]} 15. Qd3 {[%clk 0:02:42.9]}
15... Bd7 {[%clk 0:02:22.6]} 16. Rxd6 {[%clk 0:02:40.7]} 16... O-O-O {[%clk
0:02:22.5]} 17. Bg2 {[%clk 0:02:37.3]} 17... Bc6 {[%clk 0:02:18]} 18. Rd1 {[%clk
0:02:33.2]} 18... Rxd6 {[%clk 0:02:03.2]} 19. Qxd6 {[%clk 0:02:34.1]} 19... Qxd6
{[%clk 0:01:58.8]} 20. Rxd6 {[%clk 0:02:35]} 20... hxg5 {[%clk 0:01:58.7]} 21.
hxg5 {[%clk 0:02:34.8]} 21... Rh2 {[%clk 0:01:50.6]} 22. Rd2 {[%clk 0:02:35.3]}
22... Nc4 {[%clk 0:01:50.5]} 23. Re2 {[%clk 0:02:35.9]} 23... Kc7 {[%clk
0:01:27.8]} 24. b3 {[%clk 0:02:33.8]} 24... Nd6 {[%clk 0:01:28]} 25. Kd2 {[%clk
0:02:31.3]} 25... b5 {[%clk 0:01:21]} 26. a3 {[%clk 0:02:24.9]} 26... a5 {[%clk
0:01:17.3]} 27. b4 {[%clk 0:02:11.5]} 27... Nc4+ {[%clk 0:01:15.9]} 28. Ke1
{[%clk 0:02:11.3]} 28... Nxa3 {[%clk 0:01:04.2]} 29. bxa5 {[%clk 0:02:11.4]}
29... b4 {[%clk 0:01:02.3]} 30. Na2 {[%clk 0:02:11.6]} 30... Bb5 {[%clk
0:00:40.6]} 31. Rf2 {[%clk 0:02:08.2]} 31... Nc4 {[%clk 0:00:32.9]} 32. a6
{[%clk 0:02:03.7]} 32... Ne3 {[%clk 0:00:27.6]} 33. a7 {[%clk 0:01:54.6]} 33...
Kb7 {[%clk 0:00:22]} 34. Bf3 {[%clk 0:01:37.8]} 34... Nxc2+ {[%clk 0:00:21.2]}
35. Rxc2 {[%clk 0:01:32.2]} 35... Rxc2 {[%clk 0:00:21.1]} 36. Nxb4 {[%clk
0:01:32.6]} 36... Rb2 {[%clk 0:00:17.3]} 37. a8=Q+ {[%clk 0:01:27.6]} 37... Kxa8
{[%clk 0:00:17.3]} 38. e5+ {[%clk 0:01:28.3]} 38... Ka7 {[%clk 0:00:17.2]} 39.
Nc6+ {[%clk 0:01:25.7]} 39... Bxc6 {[%clk 0:00:17.4]} 40. Bxc6 {[%clk
0:01:26.4]} 40... Kb6 {[%clk 0:00:15.3]} 41. Be8 {[%clk 0:01:26.1]} 41... Rb4
{[%clk 0:00:14]} 42. Bxf7 {[%clk 0:01:26.1]} 42... Rxf4 {[%clk 0:00:14.6]} 43.
Bxe6 {[%clk 0:01:17.5]} 43... Re4+ {[%clk 0:00:14.5]} 44. Kf2 {[%clk 0:01:18.2]}
44... Rxe5 {[%clk 0:00:15]} 45. Bg8 {[%clk 0:01:18.7]} 45... Rxg5 {[%clk
0:00:14.8]} 46. Ke3 {[%clk 0:01:19.6]} 46... Kc5 {[%clk 0:00:15]} 47. Kf4 {[%clk
0:01:20.5]} 47... Rg1 {[%clk 0:00:14.2]} 48. Bh7 {[%clk 0:01:21.2]} 48... Kd6
{[%clk 0:00:14.4]} 49. Bf5 {[%clk 0:01:21.2]} 49... Ke7 {[%clk 0:00:14.8]} 50.
Bc8 {[%clk 0:01:21.2]} 50... Kf6 {[%clk 0:00:14.8]} 51. Kf3 {[%clk 0:01:22.1]}
51... Rc1 {[%clk 0:00:14.5]} 52. Bd7 {[%clk 0:01:20]} 52... Rc5 {[%clk
0:00:15.4]} 53. Kg3 {[%clk 0:01:20]} 53... Ra5 {[%clk 0:00:16.3]} 54. Kg4 {[%clk
0:01:20.4]} 54... Ra7 {[%clk 0:00:16.6]} 55. Bc8 {[%clk 0:01:20.4]} 55... Rc7
{[%clk 0:00:16.7]} 56. Ba6 {[%clk 0:01:20.8]} 56... Rc6 {[%clk 0:00:16.5]} 57.
Bb5 {[%clk 0:01:21.3]} 57... Rb6 {[%clk 0:00:17.1]} 58. Bd7 {[%clk 0:01:21.2]}
58... Rb4+ {[%clk 0:00:17.4]} 59. Kf3 {[%clk 0:01:21.1]} 59... Ke5 {[%clk
0:00:17.5]} 60. Bc8 {[%clk 0:01:21.4]} 60... Rc4 {[%clk 0:00:17.4]} 61. Bd7
{[%clk 0:01:21.3]} 61... g5 {[%clk 0:00:17.1]} 62. Kg3 {[%clk 0:01:21.4]} 62...
Rc7 {[%clk 0:00:16.4]} 63. Bb5 {[%clk 0:01:19]} 63... Rb7 {[%clk 0:00:14.7]} 64.
Bc6 {[%clk 0:01:18.9]} 64... Rb4 {[%clk 0:00:14.1]} 65. Bd7 {[%clk 0:01:18.9]}
65... Rd4 {[%clk 0:00:14.3]} 66. Bc8 {[%clk 0:01:18.7]} 66... Kf6 {[%clk
0:00:14.3]} 67. Bb7 {[%clk 0:01:16.6]} 67... Kg6 {[%clk 0:00:14.3]} 68. Bc8
{[%clk 0:01:15.9]} 68... Kh5 {[%clk 0:00:13.1]} 69. Bf5 {[%clk 0:01:16.5]} 69...
Rd5 {[%clk 0:00:11.5]} 70. Be4 {[%clk 0:01:16.9]} 70... Re5 {[%clk 0:00:11.4]}
71. Bf3+ {[%clk 0:01:17.4]} 71... Kg6 {[%clk 0:00:12]} 72. Kg4 {[%clk
0:01:17.9]} 72... Ra5 {[%clk 0:00:11.6]} 73. Bc6 {[%clk 0:01:17.9]} 73... Kf6
{[%clk 0:00:11.6]} 74. Bd7 {[%clk 0:01:13.3]} 74... Rd5 {[%clk 0:00:11.3]} 75.
Bc6 {[%clk 0:01:13.3]} 75... Rd4+ {[%clk 0:00:11.6]} 76. Kg3 {[%clk 0:01:13.5]}
76... Ke5 {[%clk 0:00:10.8]} 77. Bb7 {[%clk 0:01:12.2]} 77... Rb4 {[%clk
0:00:10.8]} 78. Bc8 {[%clk 0:01:12.3]} 78... Rc4 {[%clk 0:00:10.3]} 79. Bb7
{[%clk 0:01:12.7]} 79... Rd4 {[%clk 0:00:11.2]} 80. Bc8 {[%clk 0:01:12.7]} 80...
Rd8 {[%clk 0:00:10.3]} 81. Bb7 {[%clk 0:01:11.6]} 81... Rf8 {[%clk 0:00:10.2]}
82. Bc6 {[%clk 0:01:11.3]} 82... Kf6 {[%clk 0:00:10.1]} 83. Bd7 {[%clk
0:01:11.4]} 83... Rd8 {[%clk 0:00:10.1]} 84. Bc6 {[%clk 0:01:11.7]} 84... Kg6
{[%clk 0:00:10.3]} 85. Be4+ {[%clk 0:01:11.5]} 85... Kh5 {[%clk 0:00:09.9]} 86.
Bf3+ {[%clk 0:01:11.8]} 86... Kh6 {[%clk 0:00:10.5]} 87. Be4 {[%clk 0:01:11.3]}
87... Rd4 {[%clk 0:00:11]} 88. Bc2 {[%clk 0:01:11.7]} 88... Kh5 {[%clk
0:00:08.6]} 89. Bf5 {[%clk 0:01:07.9]} 89... Rc4 {[%clk 0:00:06.1]} 90. Be6
{[%clk 0:01:08.1]} 90... Rc3+ {[%clk 0:00:06.3]} 91. Kg2 {[%clk 0:01:06.4]}
91... Kh4 {[%clk 0:00:06.9]} 92. Bd7 {[%clk 0:01:05.4]} 92... g4 {[%clk
0:00:07.4]} 93. Kf2 {[%clk 0:01:06]} 93... Rc2+ {[%clk 0:00:07.7]} 94. Kg1
{[%clk 0:01:06.4]} 94... Kg3 {[%clk 0:00:07.8]} 95. Kf1 {[%clk 0:01:06.6]} 95...
Rc7 {[%clk 0:00:06.9]} 96. Be6 {[%clk 0:01:06.7]} 96... Re7 {[%clk 0:00:07.3]}
97. Bd5 {[%clk 0:01:07.1]} 97... Kf4 {[%clk 0:00:07.3]} 98. Kg2 {[%clk
0:01:07.2]} 98... Re2+ {[%clk 0:00:07.1]} 99. Kf1 {[%clk 0:01:07.4]} 99... Rd2
{[%clk 0:00:07.6]} 100. Ba8 {[%clk 0:01:07.4]} 100... Ke3 {[%clk 0:00:07.3]}
101. Kg1 {[%clk 0:01:07.7]} 101... Ra2 {[%clk 0:00:06.6]} 102. Bb7 {[%clk
0:01:08]} 102... Rf2 {[%clk 0:00:06.6]} 103. Bc6 {[%clk 0:01:07.6]} 103... Rc2
{[%clk 0:00:06]} 104. Bb7 {[%clk 0:01:07.6]} 104... Kf4 {[%clk 0:00:06.1]} 105.
Kf1 {[%clk 0:01:06.3]} 105... Kg3 {[%clk 0:00:05.8]} 106. Be4 {[%clk 0:01:04.1]}
106... Rf2+ {[%clk 0:00:05.6]} 107. Ke1 {[%clk 0:01:02.7]} 107... Rf4 {[%clk
0:00:05.5]} 108. Bc6 {[%clk 0:01:02.2]} 108... Kh2 {[%clk 0:00:06]} 109. Ke2
{[%clk 0:01:02.8]} 109... g3 {[%clk 0:00:06.5]} 110. Ke3 {[%clk 0:01:03.6]}
110... Rf6 {[%clk 0:00:06.6]} 111. Bd5 {[%clk 0:01:03.5]} 111... g2 {[%clk
0:00:06.9]} 112. Bxg2 {[%clk 0:01:03.4]} 112... Kxg2 {[%clk 0:00:07.2]} 113. Ke4
{[%clk 0:01:04.3]} 113... Kg3 {[%clk 0:00:07.4]} 114. Ke5 {[%clk 0:01:05]}
114... Rf1 {[%clk 0:00:07.4]} 115. Ke4 {[%clk 0:01:05.9]} 115... Rf2 {[%clk
0:00:07.4]} 116. Ke3 {[%clk 0:01:06.8]} 116... Rf8 {[%clk 0:00:07.6]} 117. Ke4
{[%clk 0:01:07.7]} 117... Kg4 {[%clk 0:00:07.8]} 118. Ke5 {[%clk 0:01:08.4]}
118... Rf1 {[%clk 0:00:08.1]} 119. Ke6 {[%clk 0:01:09.3]} 119... Kg5 {[%clk
0:00:08.3]} 120. Ke5 {[%clk 0:01:10]} 120... Re1+ {[%clk 0:00:08.4]} 121. Kd4
{[%clk 0:01:10.7]} 121... Kf4 {[%clk 0:00:08.6]} 122. Kd3 {[%clk 0:01:11.6]}
122... Re8 {[%clk 0:00:08.5]} 123. Kd2 {[%clk 0:01:12.5]} 123... Kf3 {[%clk
0:00:08.6]} 124. Kc3 {[%clk 0:01:13.4]} 124... Rd8 {[%clk 0:00:08.7]} 125. Kc4
{[%clk 0:01:13.8]} 125... Ke4 {[%clk 0:00:08.9]} 126. Kc5 {[%clk 0:01:14.7]}
126... Rd1 {[%clk 0:00:09.1]} 127. Kc6 {[%clk 0:01:15.6]} 127... Ke5 {[%clk
0:00:09.3]} 128. Kc7 {[%clk 0:01:16.5]} 128... Ke6 {[%clk 0:00:09.6]} 129. Kb6
{[%clk 0:01:17.4]} 129... Rc1 {[%clk 0:00:09.1]} 130. Kb5 {[%clk 0:01:18.3]}
130... Kd5 {[%clk 0:00:09.3]} 131. Kb4 {[%clk 0:01:19.2]} 131... Rc8 {[%clk
0:00:09.5]} 132. Kb3 {[%clk 0:01:20.1]} 132... Kd4 {[%clk 0:00:09.7]} 133. Ka2
{[%clk 0:01:21]} 133... Rb8 {[%clk 0:00:09.4]} 134. Ka3 {[%clk 0:01:20.8]}
134... Kc4 {[%clk 0:00:09.4]} 135. Ka2 {[%clk 0:01:21.5]} 135... Kc3 {[%clk
0:00:09.6]} 136. Ka1 {[%clk 0:01:22.2]} 136... Kc2 {[%clk 0:00:09.8]} 137. Ka2
{[%clk 0:01:23.1]} 137... Ra8# {[%clk 0:00:09.8]} 0-1